bitfinex/quotes_ETHUSD_20260302
["timestamp","ask_amount","ask_price","bid_price","bid_amount"]
[1772484174918,1.22422995,2042.1,2041.6,1.93541415]
[1772484175622,1.22617001,2042.2,2041.8,0.001]
[1772484176000,0.002,2042.0,2041.8,0.001]
[1772484177980,0.002,2042.4,2042.0,0.46241415]
[1772484178113,0.47174651,2043.1,2042.2,0.46241415]
[1772484178114,1.22368687,2043.1,2042.2,0.46241415]
[1772484178287,0.47374651,2043.0,2042.2,0.46241415]
[1772484180126,0.002,2043.0,2042.4,0.46241415]
[1772484180292,1.22570866,2043.0,2042.4,0.46241415]
[1772484181618,1.22570866,2043.0,2042.3,1.473]
[1772484181619,0.47174651,2042.9,2042.3,1.473]
[1772484182411,1.22381045,2042.8,2042.2,0.46241415]
[1772484182734,1.69755696,2042.8,2042.2,1.93541415]
[1772484182953,1.69755696,2042.8,2041.8,6.83394025]
[1772484182954,0.47374651,2042.7,2041.8,6.83394025]
[1772484183106,2.39810434,2042.5,2041.8,0.46341415]
[1772484183422,0.47174651,2042.4,2041.8,1.68781853]
[1772484184354,0.002,2042.3,2041.9,0.46241415]
[1772484184551,1.2259902,2042.5,2041.9,0.46241415]
[1772484184732,1.69773671,2042.5,2041.9,0.46241415]
[1772484185123,0.002,2042.5,2042.0,0.46241415]
[1772484185326,0.002,2042.5,2041.8,0.001]
[1772484185327,0.47174651,2042.3,2041.8,0.001]
[1772484186421,1.22417001,2042.2,2041.8,0.001]
[1772484187928,1.22417001,2042.2,2042.0,0.001]
[1772484188319,1.22417001,2042.2,2041.8,0.001]
[1772484188551,0.001,2042.1,2041.8,0.001]
[1772484192252,0.001,2042.0,2041.8,0.46341415]
[1772484192428,1.69585693,2042.3,2041.8,0.46341415]
[1772484192429,0.001,2042.2,2041.8,0.46341415]
[1772484192992,0.001,2042.1,2041.8,0.46341415]
[1772484193449,0.47274651,2042.0,2041.5,1.473]
[1772484193644,0.47174651,2042.0,2041.5,1.473]
[1772484193823,0.47174651,2042.0,2041.5,2.69757331]
[1772484194939,1.69609638,2041.9,2041.5,1.473]
[1772484195259,0.47174651,2041.9,2041.5,2.69758011]
[1772484195831,0.47174651,2041.9,2041.5,2.69758244]
[1772484196631,0.001,2041.8,2041.5,2.69758244]
[1772484196841,1.71288876,2041.8,2041.5,0.001]
[1772484197138,0.48845205,2041.8,2041.5,0.001]
[1772484198573,0.001,2041.8,2041.5,0.001]
[1772484200254,0.46046002,2042.0,2041.5,0.001]
[1772484200566,0.46046002,2042.2,2041.5,0.45715393]
[1772484200881,0.46046002,2042.2,2041.7,0.001]
[1772484201174,0.46046002,2042.0,2041.7,0.001]
[1772484203381,1.68480859,2042.0,2041.7,0.001]
[1772484203684,0.46046002,2042.0,2041.7,0.001]
[1772484203867,1.22421409,2042.2,2041.7,0.001]
[1772484203868,1.68467411,2042.2,2041.7,0.001]
[1772484204379,0.46046002,2042.1,2041.7,0.001]
[1772484205243,0.46046002,2042.3,2041.7,0.45715393]
[1772484205470,0.46046002,2042.3,2041.8,1.68056376]
[1772484205677,0.46046002,2042.2,2041.7,1.22542129]
[1772484206064,0.46046002,2042.2,2041.7,0.001]
[1772484207574,1.22422995,2042.1,2041.7,0.001]
[1772484207780,0.46046002,2042.0,2041.7,0.001]
[1772484209182,1.22414482,2042.3,2041.7,0.45715393]
[1772484209367,1.68460484,2042.3,2041.7,0.45715393]
[1772484209555,0.46046002,2042.2,2041.7,0.45715393]
[1772484209878,0.46046002,2042.0,2041.7,0.001]
[1772484210074,0.46046002,2042.0,2041.7,1.22546571]
[1772484210382,0.46046002,2042.0,2041.7,1.22546828]
[1772484210588,0.46046002,2042.0,2041.5,0.001]
[1772484211153,0.46046002,2042.0,2041.5,1.68173787]
[1772484211379,0.46046002,2042.0,2041.5,0.45715393]
[1772484212277,1.22434987,2041.9,2041.7,0.001]
[1772484212581,0.002,2041.8,2041.7,0.001]
[1772484212784,0.46246002,2041.8,2041.7,0.001]
[1772484215559,0.002,2041.8,2041.7,0.001]
[1772484215991,1.22640983,2041.8,2041.7,0.001]
[1772484216175,0.002,2041.8,2041.7,0.001]
[1772484217285,0.46246002,2041.8,2041.5,0.001]
[1772484218882,1.68690864,2041.8,2041.5,0.001]
[1772484219309,0.46246002,2041.8,2041.5,0.001]
[1772484219464,0.002,2041.8,2041.5,0.45715393]
[1772484220070,0.002,2041.8,2041.5,0.001]
[1772484220282,0.002,2041.8,2041.5,0.93710894]
[1772484220996,0.002,2041.8,2041.6,1.22452978]
[1772484221375,0.002,2041.8,2041.5,2.16165823]
[1772484221576,0.002,2041.8,2041.5,1.68170322]
[1772484221794,0.002,2041.8,2041.5,0.45715393]
[1772484221993,0.46246002,2041.8,2041.5,0.001]
[1772484224301,1.2244698,2041.7,2041.5,0.001]
[1772484225585,0.46046002,2041.6,2041.5,0.001]
[1772484226489,1.6849898,2041.6,2041.5,0.001]
[1772484226800,0.46046002,2041.6,2041.5,0.001]
[1772484227672,1.6849898,2041.6,2041.5,0.001]
[1772484228507,0.46046002,2041.6,2041.5,0.001]
[1772484229200,1.2245221,2041.7,2041.5,0.001]
[1772484229503,1.70865445,2041.7,2041.5,0.001]
[1772484230905,0.002,2042.0,2041.6,0.45800563]
[1772484231090,0.002,2042.0,2041.7,0.45800563]
[1772484232285,1.22629296,2042.0,2041.7,0.45800563]
[1772484232785,6.40245021,2042.3,2041.9,0.93796064]
[1772484232786,1.22613417,2042.3,2041.9,0.93796064]
[1772484232982,1.504,2042.6,2042.1,0.93796064]
[1772484233290,0.002,2042.7,2042.4,0.45800563]
[1772484234780,0.002,2042.7,2042.4,1.68200807]
[1772484235104,0.002,2042.9,2042.5,0.93796064]
[1772484235476,0.48413235,2043.4,2042.5,1.479]
[1772484235678,0.48413235,2043.4,2042.7,0.93796064]
[1772484236430,1.70748617,2043.6,2042.9,0.45800563]
[1772484236707,0.48413235,2043.4,2042.8,1.479]
[1772484237018,1.70764333,2043.3,2042.8,1.479]
[1772484238429,0.002,2043.0,2042.8,2.70279904]
[1772484238579,1.22334064,2043.6,2042.9,0.45800563]
[1772484238779,1.70747299,2043.6,2042.9,0.45800563]
[1772484239196,1.70747299,2043.6,2043.0,1.68169628]
[1772484240100,1.70747299,2043.6,2043.1,0.45800563]
[1772484241218,0.48413235,2043.3,2042.4,0.45800563]
[1772484241378,0.48413235,2043.3,2042.5,0.45800563]
[1772484242520,0.48413235,2043.3,2042.3,0.45800563]
[1772484242683,0.48413235,2043.1,2042.1,1.68222798]
[1772484243038,0.48413235,2043.1,2042.2,0.45800563]
[1772484243184,0.48413235,2042.9,2042.1,1.22422235]
[1772484243382,0.48413235,2042.9,2042.2,0.45800563]
[1772484244215,0.48413235,2042.9,2041.9,1.22430464]
[1772484244384,0.48413235,2042.7,2041.7,1.22544093]
[1772484244588,0.48413235,2042.7,2041.7,1.68344656]
[1772484245419,1.22393028,2042.6,2041.8,0.45800563]
[1772484245636,0.48413235,2042.5,2041.8,0.45800563]
[1772484247916,1.70818248,2042.4,2041.8,0.45800563]
[1772484248215,0.48413235,2042.3,2041.7,0.001]
[1772484249785,0.48413235,2042.3,2042.0,0.001]
[1772484250016,1.70830236,2042.2,2042.0,0.001]
[1772484250186,1.70819199,2042.4,2042.0,0.001]
[1772484252382,1.70818733,2042.4,2042.0,0.001]
[1772484252590,0.48413235,2042.4,2042.0,0.001]
[1772484252920,1.22403272,2042.5,2042.0,0.001]
[1772484254015,0.48413235,2042.6,2042.0,0.001]
[1772484256150,0.48413235,2042.6,2042.0,0.45900563]
[1772484256326,1.70810792,2042.6,2042.0,0.45900563]
[1772484256647,0.48413235,2042.6,2042.0,0.45900563]
[1772484257048,0.46656068,2042.5,2042.0,0.001]
[1772484260144,0.46656068,2042.5,2042.1,1.22422995]
[1772484261945,1.69060146,2042.5,2042.0,1.72243432]
[1772484262150,1.69060146,2042.5,2042.0,1.72246445]
[1772484262350,0.46656068,2042.5,2042.0,1.72246445]
[1772484262557,0.46656068,2042.5,2042.2,0.001]
[1772484262861,1.69055469,2042.5,2042.2,0.001]
[1772484263563,0.46509203,2042.6,2042.2,0.001]
[1772484265257,0.46509203,2042.5,2042.2,0.001]
[1772484267150,1.22405013,2042.4,2042.2,0.001]
[1772484267735,1.68914216,2042.4,2042.2,0.001]
[1772484268376,0.46509203,2042.4,2042.2,0.001]
[1772484269249,1.68916643,2042.4,2042.2,0.001]
[1772484269647,0.46509203,2042.3,2042.0,0.001]
[1772484271244,1.22417001,2042.2,2042.0,0.001]
[1772484271479,4.89675887,2043.1,2042.0,0.001]
[1772484271480,1.2255125,2043.3,2042.2,0.49717703]
[1772484271649,1.2255125,2043.3,2042.3,0.49717703]
[1772484271650,0.46909203,2043.2,2042.3,0.49717703]
[1772484271873,0.46909203,2043.2,2042.1,6.87085331]
[1772484271874,0.46909203,2043.2,2042.1,0.49717703]
[1772484272566,2.7355125,2043.3,2042.1,0.49717703]
[1772484272567,0.46509203,2043.0,2042.1,0.49717703]
[1772484273268,0.004,2043.1,2042.1,0.49717703]
[1772484273269,0.004,2042.9,2042.3,0.49717703]
[1772484274568,0.004,2042.8,2042.3,0.49717703]
[1772484274746,0.004,2043.0,2042.3,0.49717703]
[1772484275355,0.004,2043.0,2042.5,0.49717703]
[1772484276172,0.004,2043.0,2042.6,0.49717703]
[1772484276545,0.004,2043.0,2042.4,1.72122716]
[1772484276743,0.46909203,2043.0,2042.4,1.72122716]
[1772484277645,0.47109203,2043.0,2042.4,1.72122716]
[1772484277855,0.006,2043.0,2042.5,0.49717703]
[1772484279144,0.002,2043.2,2042.5,0.49717703]
[1772484279758,0.002,2043.2,2042.6,1.72110731]
[1772484279963,0.46709203,2043.2,2042.6,1.72110731]
[1772484282143,1.69067255,2043.2,2042.6,1.72110731]
[1772484282474,0.46509203,2043.1,2042.6,1.72110731]
[1772484282884,0.002,2043.2,2042.7,0.49717703]
[1772484283492,0.002,2043.2,2042.6,2.70093028]
[1772484283694,0.46709203,2043.2,2042.6,3.19810731]
[1772484283995,0.46709203,2043.2,2042.7,0.49717703]
[1772484284410,0.002,2043.2,2042.7,0.49717703]
[1772484285893,0.46709203,2043.2,2042.5,3.20016723]
[1772484286076,0.46709203,2043.2,2042.5,1.72116723]
[1772484288084,1.72069355,2043.2,2042.5,1.72116723]
[1772484288282,0.002,2043.2,2042.6,0.4645384]
[1772484288477,1.22315181,2043.9,2042.9,0.4645384]
[1772484288671,1.71822524,2043.9,2043.1,0.4645384]
[1772484289706,0.49507343,2044.1,2043.1,0.4645384]
[1772484290095,0.49507343,2044.1,2043.1,1.22363075]
[1772484290096,0.49507343,2043.9,2043.1,1.22363075]
[1772484290403,0.002,2043.2,2043.1,1.22363075]
[1772484290573,0.002,2043.2,2043.1,1.68816915]
[1772484290796,0.002,2043.5,2043.1,1.68816915]
[1772484291197,0.002,2043.5,2043.2,0.4645384]
[1772484292498,0.002,2043.5,2043.4,0.4645384]
[1772484292729,1.7181782,2044.0,2043.4,0.4645384]
[1772484293219,1.22310477,2044.0,2043.4,0.4645384]
[1772484293532,0.49507343,2043.9,2043.3,1.22351098]
[1772484293824,0.49507343,2043.9,2043.3,1.68804938]
[1772484294723,0.49507343,2043.9,2043.3,1.22351098]
[1772484294929,1.71823016,2043.9,2043.4,0.4645384]
[1772484295510,1.22314169,2044.0,2043.4,0.4645384]
[1772484296028,1.71821512,2044.0,2043.4,0.4645384]
[1772484297639,1.71821512,2044.0,2043.4,1.68793633]
[1772484298133,0.49507343,2044.0,2043.5,0.4645384]
[1772484298343,1.22303214,2044.1,2043.5,0.4645384]
[1772484298645,1.71810557,2044.1,2043.5,0.4645384]
[1772484298939,0.49507343,2044.4,2043.6,0.4645384]
[1772484299143,0.49507343,2044.4,2043.5,0.4645384]
[1772484299537,1.71798591,2044.3,2043.6,1.68786977]
[1772484300226,0.49507343,2044.2,2043.2,1.22351799]
[1772484300533,0.49507343,2044.1,2043.3,0.4645384]
[1772484301543,0.49507343,2044.1,2043.5,1.22339124]
[1772484301750,0.49507343,2044.1,2043.4,2.0864946]
[1772484301976,0.49507343,2043.7,2043.2,1.22353395]
[1772484302136,0.49507343,2043.7,2042.7,0.4645384]
[1772484302337,0.49507343,2043.7,2042.7,0.4655384]
[1772484302651,0.49507343,2043.7,2042.7,0.001]
[1772484303014,0.49507343,2043.7,2042.7,0.4655384]
[1772484303431,0.49507343,2043.7,2043.0,0.4645384]
[1772484303650,0.49507343,2043.7,2043.2,1.22357086]
[1772484303651,1.71835934,2043.7,2043.2,1.22357086]
[1772484303851,0.49507343,2043.6,2043.1,3.16912931]
[1772484304052,0.49507343,2043.6,2043.1,1.68812931]
[1772484304349,0.49507343,2043.6,2043.0,2.70464507]
[1772484306373,1.22515227,2043.9,2043.3,2.86114823]
[1772484306569,0.49507343,2043.8,2043.1,0.4645384]
[1772484306932,0.49507343,2043.8,2042.9,1.68825605]
[1772484307240,0.49507343,2043.8,2043.0,1.482]
[1772484307438,0.49507343,2043.6,2043.0,1.482]
[1772484307839,0.49507343,2043.6,2043.0,1.9465384]
[1772484310143,1.22339124,2043.5,2043.1,1.22363075]
[1772484310668,1.22339124,2043.5,2043.0,3.17017937]
[1772484310863,1.71846467,2043.5,2042.9,1.22372784]
[1772484311159,0.49507343,2043.4,2042.7,0.001]
[1772484311360,0.49507343,2043.4,2042.7,2.70685908]
[1772484311566,0.49507343,2043.4,2042.7,1.22485908]
[1772484312062,0.49507343,2043.4,2042.7,0.001]
[1772484312263,0.49507343,2043.2,2042.7,0.001]
[1772484313687,1.22351098,2043.3,2042.3,0.001]
[1772484313688,0.49507343,2042.9,2042.3,0.001]
[1772484314342,0.49507343,2042.7,2042.3,0.001]
[1772484315170,0.49507343,2043.1,2042.3,0.4655384]
[1772484315872,0.49507343,2043.1,2042.4,2.39660983]
[1772484316191,1.22321166,2043.8,2042.8,0.4645384]
[1772484316343,1.22321166,2043.8,2043.1,1.6881401]
[1772484316546,0.002,2043.5,2043.1,1.6881401]
[1772484316950,1.22516192,2043.9,2043.3,2.88779591]
[1772484317150,1.22516192,2043.9,2043.3,0.49118608]
[1772484317649,1.22516192,2043.9,2043.1,1.2236017]
[1772484317650,0.002,2043.7,2043.6,0.48650451]
[1772484317856,0.002,2043.9,2043.7,0.48650451]
[1772484318477,0.002,2043.9,2043.7,1.70974008]
[1772484318879,0.002,2043.9,2043.1,0.48650451]
[1772484319185,0.002,2043.9,2043.3,0.48650451]
[1772484320047,0.002,2043.9,2043.0,0.48650451]
[1772484320048,0.34526565,2043.9,2043.0,0.48650451]
[1772484320344,1.56653716,2043.7,2043.0,0.48650451]
[1772484321176,1.22327151,2043.7,2043.1,0.48650451]
[1772484321378,0.002,2043.9,2043.4,0.48650451]
[1772484321580,4.89144716,2044.4,2043.0,6.01690611]
[1772484321581,0.34326565,2045.2,2043.7,0.48650451]
[1772484321907,0.34326565,2045.9,2045.0,2.39660983]
[1772484322198,1.38360817,2046.0,2044.5,2.71901648]
[1772484322199,0.1616927,2046.0,2045.1,0.48650451]
[1772484322501,5.22965704,2046.7,2045.5,0.48650451]
[1772484322702,2.95825142,2047.5,2045.4,1.22225481]
[1772484322703,0.34326565,2047.8,2046.0,0.065536]
[1772484322903,0.34326565,2047.8,2046.1,1.27950451]
[1772484323199,0.34326565,2047.3,2046.1,1.27950451]
[1772484323362,2.39660983,2047.4,2046.2,0.48650451]
[1772484323569,0.34326565,2047.3,2046.2,0.48650451]
[1772484323897,2.39660983,2046.6,2045.5,0.48650451]
[1772484324103,0.34326565,2046.5,2045.4,1.45250451]
[1772484324268,0.34326565,2046.5,2045.4,0.48650451]
[1772484324569,0.34326565,2046.3,2045.4,1.481]
[1772484325394,0.34326565,2046.2,2044.9,1.48]
[1772484325598,2.73987548,2046.0,2044.8,0.48650451]
[1772484325770,2.73987548,2046.0,2044.8,1.96650451]
[1772484325970,2.73987548,2046.0,2044.8,3.18911036]
[1772484326172,2.73987548,2046.0,2044.8,1.70911036]
[1772484326394,1.2219561,2045.9,2044.9,0.48650451]
[1772484326594,1.2219561,2045.9,2045.0,1.22249388]
[1772484326794,1.2219561,2045.9,2044.9,0.48650451]
[1772484326984,1.2219561,2045.9,2044.9,3.18804653]
[1772484327171,5.2296394,2046.6,2045.4,0.48650451]
[1772484327520,1.22159784,2046.5,2045.4,0.48650451]
[1772484327870,1.56486349,2046.5,2045.4,0.48650451]
[1772484328393,1.22177695,2046.2,2045.2,1.70887884]
[1772484328912,2.39660983,2046.1,2044.9,0.48650451]
[1772484329117,2.39660983,2046.1,2045.0,1.479]
[1772484329496,2.39660983,2046.1,2045.0,1.96550451]
[1772484329898,1.5650426,2046.2,2045.1,0.48650451]
[1772484330614,0.34326565,2046.1,2044.6,1.77477356]
[1772484330916,0.34526565,2046.1,2044.8,0.48650451]
[1772484331216,2.73987548,2046.0,2044.8,0.48650451]
[1772484331419,0.34326565,2045.6,2044.6,1.479]
[1772484331596,0.34326565,2045.6,2044.5,0.48650451]
[1772484331915,2.73987548,2045.4,2044.2,0.48650451]
[1772484332117,2.73987548,2045.4,2044.3,1.478]
[1772484332320,2.73987548,2045.4,2044.2,0.48650451]
[1772484332500,2.39660983,2045.1,2044.0,1.22305514]
[1772484332691,1.56563998,2045.2,2044.1,1.478]
[1772484332890,1.56563998,2045.2,2044.2,0.48650451]
[1772484333090,1.22207557,2045.7,2044.8,2.39660983]
[1772484333312,1.22207557,2045.7,2044.2,4.79321966]
[1772484333313,0.34326565,2045.6,2044.4,0.48650451]
[1772484333514,0.34326565,2045.6,2044.4,1.96450451]
[1772484333718,0.34326565,2045.6,2044.6,0.48650451]
[1772484333918,1.22207557,2045.7,2044.6,0.48650451]
[1772484334218,1.22207557,2045.7,2044.4,1.478]
[1772484334219,1.22207557,2045.7,2044.9,0.48650451]
[1772484334620,4.88774186,2046.0,2045.0,0.48650451]
[1772484334796,1.22389638,2046.1,2045.0,0.48650451]
[1772484334797,1.22389638,2046.1,2045.1,3.18593862]
[1772484334999,1.22389638,2046.1,2045.2,0.48650451]
[1772484336725,0.002,2046.1,2045.4,0.48650451]
[1772484337244,0.002,2046.1,2045.5,0.48650451]
[1772484337443,7.28199012,2047.0,2045.5,0.48650451]
[1772484337444,1.2216136,2046.5,2045.5,0.48650451]
[1772484337643,1.2216136,2046.5,2045.6,1.96050451]
[1772484337950,1.2216136,2046.5,2045.6,0.48650451]
[1772484338250,1.2216136,2046.5,2045.3,3.18281908]
[1772484338251,1.56687925,2046.5,2045.3,3.18281908]
[1772484338452,1.56687925,2046.5,2045.4,0.48650451]
[1772484339033,1.56687925,2046.5,2045.5,1.70869957]
[1772484339218,1.56687925,2046.5,2045.6,0.48650451]
[1772484339427,1.2216136,2046.5,2045.6,0.48650451]
[1772484340161,1.2216136,2046.5,2045.6,1.95950451]
[1772484340462,1.2216136,2046.5,2045.6,0.48650451]
[1772484340664,0.45621443,2046.2,2045.1,0.48650451]
[1772484340834,0.45621443,2046.2,2045.2,0.48650451]
[1772484341038,1.22183666,2046.1,2045.2,1.70885983]
[1772484341429,1.67805109,2046.1,2045.0,1.22243552]
[1772484341627,0.45621443,2045.9,2044.9,0.48650451]
[1772484341854,0.45621443,2045.9,2045.0,0.48650451]
[1772484342429,0.45621443,2045.9,2044.8,1.22259763]
[1772484342727,0.45621443,2045.8,2044.8,1.70910214]
[1772484343233,1.22207557,2045.7,2044.9,0.48650451]
[1772484343648,1.22207557,2045.7,2044.5,1.22275711]
[1772484343649,2.85282426,2045.6,2044.5,1.22275711]
[1772484343849,2.39660983,2045.6,2044.4,1.72280497]
[1772484344377,2.39660983,2045.3,2044.1,3.21901648]
[1772484344526,2.39660983,2045.3,2044.1,5.91404228]
[1772484344728,2.39660983,2045.1,2044.2,0.5]
[1772484344927,2.39660983,2045.1,2044.1,2.71901648]
[1772484344928,2.39660983,2045.1,2044.5,0.001]
[1772484345124,1.22249388,2045.0,2044.5,0.001]
[1772484345560,1.22249388,2045.0,2044.3,0.001]
[1772484345561,2.39660983,2044.9,2044.3,0.001]
[1772484345739,2.39660983,2044.6,2043.7,0.5]
[1772484345940,2.39660983,2044.6,2044.0,0.001]
[1772484347147,1.22279285,2044.5,2044.0,0.001]
[1772484350255,2.39660983,2044.3,2044.0,0.001]
[1772484350566,1.22279285,2044.5,2043.5,0.001]
[1772484350792,1.22279285,2044.5,2043.6,0.5]
[1772484351138,4.89117143,2044.7,2043.7,1.72327151]
[1772484351447,4.89117143,2044.7,2043.7,0.5]
[1772484353302,4.89117143,2044.7,2043.8,1.22321166]
[1772484353579,4.89117143,2044.7,2043.9,0.5]
[1772484354331,1.22231457,2045.3,2044.1,0.5]
[1772484354630,2.39660983,2045.1,2044.1,0.5]
[1772484355068,2.39660983,2045.1,2043.8,1.72321166]
[1772484355363,1.22267325,2044.7,2043.8,1.72321166]
[1772484355672,1.22267325,2044.7,2043.9,0.5]
[1772484355838,1.22264497,2044.8,2043.9,0.5]
[1772484357087,4.88998282,2045.0,2044.0,0.5]
[1772484357390,1.492,2045.1,2044.2,0.5]
[1772484357589,1.22213531,2045.7,2044.6,0.5]
[1772484357742,1.22213531,2045.7,2044.8,0.5]
[1772484359373,3.61874514,2045.7,2044.6,1.72273305]
[1772484359572,0.002,2045.1,2044.6,1.72273305]
[1772484359773,0.002,2045.1,2044.7,0.5]
[1772484360269,3.61874514,2045.7,2044.8,0.499]
[1772484360270,1.22213531,2045.7,2044.8,0.499]
[1772484360568,0.002,2045.6,2044.8,0.499]
[1772484361184,0.002,2045.6,2044.6,1.22273305]
[1772484361185,0.002,2045.6,2045.1,0.499]
[1772484361344,0.002,2045.6,2045.2,1.72137433]
[1772484361741,0.002,2045.6,2044.7,7.28684233]
[1772484361742,0.002,2045.5,2044.3,0.14948499]
[1772484361976,0.002,2045.5,2044.3,0.499]
[1772484361977,3.19060983,2045.4,2044.3,0.499]
[1772484363474,1.22231457,2045.3,2044.5,0.499]
[1772484364983,7.39627193,2045.5,2044.5,0.499]
[1772484364984,1.22224105,2045.5,2044.5,0.499]
[1772484365449,0.002,2045.6,2044.6,0.499]
[1772484365643,0.004,2045.6,2044.6,0.499]
[1772484367077,0.002,2045.6,2044.6,0.499]
[1772484367558,0.002,2045.6,2044.8,0.499]
[1772484368287,1.22201583,2045.8,2045.0,0.498]
[1772484368492,1.22177695,2046.2,2045.1,0.498]
[1772484368855,4.8890776,2046.5,2045.0,1.465]
[1772484368856,4.88606923,2046.7,2045.5,0.498]
[1772484369486,4.88606923,2046.7,2045.8,0.498]
[1772484369783,1.22147847,2046.8,2046.0,0.498]
[1772484370753,3.3531248,2046.6,2045.4,0.498]
[1772484370953,0.004,2046.2,2045.1,0.498]
[1772484371170,6.6982496,2046.6,2044.7,0.792]
[1772484371171,3.82637567,2046.0,2044.7,1.26250548]
[1772484371483,0.47725087,2045.8,2044.7,0.47050548]
[1772484371674,4.57120037,2045.7,2044.7,0.47050548]
[1772484371872,1.22207557,2045.7,2044.7,0.47050548]
[1772484373469,1.22207557,2045.7,2044.8,0.47050548]
[1772484373664,4.88830229,2045.8,2044.8,0.47050548]
[1772484373867,4.88830229,2045.8,2044.5,0.001]
[1772484373868,3.3491248,2045.6,2044.5,0.001]
[1772484374161,1.97125087,2045.5,2044.5,0.001]
[1772484374469,4.88830229,2045.8,2044.6,0.47050548]
[1772484374668,4.88830229,2045.8,2044.8,0.47050548]
[1772484374873,4.88797523,2046.0,2044.8,0.47050548]
[1772484374874,1.22189638,2046.0,2044.9,0.47050548]
[1772484375656,1.22189638,2046.0,2044.8,3.3491248]
[1772484375657,1.22189638,2046.0,2045.2,0.47050548]
[1772484375854,4.88737608,2046.1,2045.3,0.47050548]
[1772484377782,1.22183666,2046.2,2045.4,0.47043561]
[1772484378582,1.69011492,2046.2,2045.1,0.47043561]
[1772484379283,1.22183666,2046.2,2045.1,0.47043561]
[1772484379789,1.22183666,2046.2,2045.4,0.47043561]
[1772484381481,4.88652356,2046.5,2045.4,0.47043561]
[1772484382194,0.002,2046.6,2045.6,0.47043561]
[1772484383270,1.96327826,2046.5,2045.3,0.47043561]
[1772484383580,3.81740306,2046.3,2045.3,0.47043561]
[1772484384077,1.22177695,2046.2,2045.3,0.47043561]
[1772484384699,1.22177695,2046.2,2045.4,0.47043561]
[1772484385808,0.002,2046.6,2045.4,0.47043561]
[1772484385809,4.88474194,2047.3,2046.1,0.47043561]
[1772484385993,1.22118014,2047.2,2046.2,0.47043561]
[1772484386304,4.88474194,2047.3,2046.2,1.69220644]
[1772484387003,0.002,2046.0,2045.8,0.47043561]
[1772484387303,0.002,2046.2,2045.8,0.47043561]
[1772484387489,0.002,2046.5,2045.8,0.47043561]
[1772484388098,0.002,2046.5,2045.9,1.2219561]
[1772484388297,0.002,2046.5,2046.0,0.47043561]
[1772484390207,0.002,2046.5,2046.2,0.47043561]
[1772484391696,1.22118014,2047.2,2046.2,0.47043561]
[1772484393197,1.22118014,2047.2,2046.2,1.69218011]
[1772484393497,1.22118014,2047.2,2046.2,1.6922116]
[1772484394179,0.46827826,2047.1,2045.5,0.47043561]
[1772484394383,0.46827826,2047.1,2045.7,0.47043561]
[1772484394583,0.46827826,2046.9,2045.4,1.69268233]
[1772484395306,0.46827826,2046.7,2045.4,1.69268233]
[1772484395606,0.46827826,2046.6,2045.5,0.47043561]
[1772484396380,0.46827826,2046.6,2045.5,1.92843561]
[1772484396705,0.46827826,2046.6,2045.5,0.47043561]
[1772484396943,0.46827826,2047.6,2046.1,0.47043561]
[1772484397098,0.46827826,2047.8,2046.3,0.47043561]
[1772484397277,1.68916022,2047.7,2046.5,1.69203345]
[1772484397480,1.68916022,2047.7,2046.5,0.47043561]
[1772484397918,0.46827826,2047.6,2046.2,0.47043561]
[1772484399002,0.46827826,2047.6,2045.9,2.9933543]
[1772484399003,2.91035802,2047.5,2045.9,2.9933543]
[1772484399314,1.22118014,2047.2,2046.1,0.47043561]
[1772484399524,2.91035802,2047.1,2046.1,0.47043561]
[1772484400311,1.2210955,2047.4,2046.3,0.47043561]
[1772484400488,1.2210955,2047.4,2046.5,0.47043561]
[1772484400691,0.002,2047.2,2046.7,0.47043561]
[1772484401082,1.22076273,2047.9,2046.7,0.47043561]
[1772484401284,0.002,2047.5,2047.1,0.47043561]
[1772484401532,1.22058392,2048.2,2047.1,1.92743561]
[1772484401822,2.90566965,2048.1,2047.2,0.47043561]
[1772484402499,1.2203456,2048.6,2047.4,0.47043561]
[1772484402711,0.71216417,2048.7,2047.5,0.53597161]
[1772484402885,1.21998828,2049.2,2048.0,0.47043561]
[1772484403080,2.90254223,2049.1,2048.0,0.47043561]
[1772484403314,1.22016691,2048.9,2048.0,0.47043561]
[1772484404823,5.34894593,2049.3,2048.0,0.47043561]
[1772484404824,1.21975019,2049.6,2048.2,0.47043561]
[1772484405045,0.1616927,2050.1,2048.8,0.47043561]
[1772484405046,1.38118033,2050.1,2048.8,0.47043561]
[1772484405183,0.46827826,2050.0,2048.8,0.47043561]
[1772484405386,2.88989621,2050.0,2048.9,0.53597161]
[1772484405701,0.1616927,2050.1,2049.0,0.47043561]
[1772484405702,1.38115462,2050.1,2049.0,0.47043561]
[1772484406286,1.497,2050.0,2048.5,0.47043561]
[1772484407420,2.55190248,2049.7,2048.5,0.47043561]
[1772484407586,2.55190248,2049.7,2048.5,1.69083023]
[1772484407786,2.55190248,2049.7,2048.5,0.47043561]
[1772484407988,3.03424446,2049.7,2048.5,0.47043561]
[1772484409309,1.21975019,2049.6,2048.5,0.47043561]
[1772484409818,0.48234198,2049.5,2048.1,0.45191597]
[1772484410015,1.495,2049.4,2048.1,0.45191597]
[1772484410218,2.71475019,2049.6,2048.1,0.45191597]
[1772484410532,1.21975019,2049.6,2048.3,0.45191597]
[1772484410734,1.21973464,2049.7,2048.5,0.45191597]
[1772484411492,4.8786587,2049.8,2048.6,1.67226157]
[1772484411694,1.496,2049.7,2048.6,1.67226157]
[1772484411891,3.34399702,2049.4,2048.2,0.065536]
[1772484412196,1.499,2049.3,2047.9,0.45191597]
[1772484413430,1.499,2049.3,2048.7,0.001]
[1772484413431,1.21998828,2049.2,2048.7,0.001]
[1772484413634,1.21998828,2049.2,2048.0,0.45191597]
[1772484413939,1.21998828,2049.2,2048.5,0.001]
[1772484414296,0.48234198,2049.1,2048.2,0.001]
[1772484415519,1.70244934,2049.0,2048.2,0.001]
[1772484416412,1.497,2048.9,2048.2,0.001]
[1772484417329,1.97934198,2048.9,2048.2,0.001]
[1772484417561,1.22022647,2048.8,2047.7,0.45191597]
[1772484417695,2.71622647,2048.8,2047.7,0.45191597]
[1772484420294,3.19856845,2048.8,2047.3,0.45191597]
[1772484420528,0.48234198,2048.7,2047.3,0.45191597]
[1772484421233,1.497,2048.6,2047.3,0.45191597]
[1772484421401,1.22040517,2048.5,2047.3,0.45191597]
[1772484422016,1.70274715,2048.5,2047.3,0.45191597]
[1772484422327,1.70274715,2048.5,2047.0,0.45191597]